fUSD/lending_fUSD_20251212
["ID","MTS","AMOUNT","RATE_DAILY","PERIOD"]
[398344114,1765538118704,-500.0,0.00041369,30]
[398344115,1765538118713,-554.79,0.00041369,30]
[398344116,1765538118723,-500.13,0.00041369,30]
[398344117,1765538118732,-543.72,0.00041369,30]
[398344118,1765538118742,-500.0,0.00041369,30]
[398344119,1765538118751,-1502.85,0.00041369,30]
[398344120,1765538118760,-901.37,0.00041369,30]
[398344121,1765538118769,-865.46,0.00041369,30]
[398344122,1765538118778,-1483.56,0.00041369,30]
[398344123,1765538118787,-500.0,0.00041369,30]
[398344124,1765538118796,-595.35851849,0.00041369,30]
[398344125,1765538118805,-2056.86,0.00041369,30]
[398344126,1765538118814,-373.59449298,0.00041369,30]
[398344127,1765538118823,-598.84,0.00041369,30]
[398344128,1765538118832,-500.0,0.00041369,30]
[398344129,1765538118841,-500.0,0.00041369,30]
[398344130,1765538118850,-500.0,0.00041369,30]
[398344131,1765538118859,-500.0,0.00041369,30]
[398344132,1765538118868,-500.0,0.00041369,30]
[398344133,1765538118877,-572.26695282,0.00041369,30]
[398344134,1765538118890,-2287.8,0.00041369,30]
[398344135,1765538118899,-500.0,0.00041369,30]
[398344136,1765538118909,-520.03861183,0.00041369,30]
[398344137,1765538118918,-500.0,0.00041369,30]
[398344138,1765538118928,-555.94,0.00041369,30]
[398344139,1765538118938,-500.0,0.00041369,30]
[398344140,1765538118947,-868.9,0.00041369,30]
[398344141,1765538118960,-671.73,0.00041369,30]
[398344142,1765538118976,-500.0,0.00041369,30]
[398344143,1765538118986,-2439.55,0.00041369,30]
[398344144,1765538118996,-2828.46,0.00041369,120]
[398344145,1765538119005,-3289.05,0.00041369,30]
[398344146,1765538119014,-5959.38536385,0.00041369,30]
[398344147,1765538119024,-1876.03,0.00041369,30]
[398344148,1765538119033,-500.0,0.00041369,30]
[398344149,1765538119043,-545.32,0.00041369,30]
[398344150,1765538119052,-932.972515,0.00041369,30]
[398344151,1765538119062,-168.15043,0.00041369,30]
[398344152,1765538119071,-1953.93417,0.00041369,30]
[398344153,1765538119081,-1767.482813,0.00041369,30]
[398344154,1765538119091,-171.577909,0.00041369,30]
[398344155,1765538119101,-1310.696547,0.00041369,30]
[398344156,1765538119111,-1000.0,0.00041369,120]
[398344157,1765538119120,-1014.43,0.00041369,30]
[398344158,1765538119130,-500.0,0.00041369,30]
[398344159,1765538119140,-1000.0,0.00041369,30]
[398344160,1765538119149,-352.09,0.00041369,2]
[398344161,1765538119159,-645.54,0.00041369,30]
[398344162,1765538119168,-500.0,0.00041369,30]
[398344163,1765538119177,-523.99,0.00041369,120]
[398344164,1765538119186,-500.0,0.00041369,2]
[398344165,1765538119195,-1994.45,0.00041369,30]
[398344166,1765538119204,-2057.12,0.00041369,30]
[398344167,1765538119213,-500.0,0.00041369,2]
[398344168,1765538119223,-531.0,0.0004137,120]
[398344169,1765538119232,-1000.0,0.0004137,2]
[398344170,1765538119242,-1330.0,0.00041382,30]
[398344171,1765538119251,-500.0,0.000414,120]
[398344172,1765538119261,-1048.12907268,0.00041401,30]
[398344173,1765538119270,-176.36785174,0.00041434,2]
[398344174,1765538119279,-216.81507315,0.0004144,120]
[398344175,1765538119289,-267.06225858,0.00041483,60]
[398344176,1765538119298,-6151.5399601,0.00041484,2]
[398344177,1765538119308,-1059.0,0.000415,120]
[398344178,1765538119317,-214.27960667,0.000415,120]
[398344179,1765538119327,-956.0,0.000415,120]
[398344180,1765538119336,-1015.21,0.000415,120]
[398344181,1765538119346,-3840.70253846,0.000415,120]
[398344182,1765538119356,-1964.33110601,0.000415,120]
[398344183,1765538119366,-531.0,0.00041507,120]
[398344184,1765538119375,-1000.0,0.00041507,2]
[398344185,1765538119384,-600.0,0.0004155,120]
[398344186,1765538119395,-150.0,0.00041555,60]
[398344187,1765538119403,-150.0,0.00041555,60]
[398344188,1765538119413,-3935.8,0.00041633,120]
[398344189,1765538119422,-500.0,0.00041643,30]
[398344190,1765538119431,-500.0,0.00041643,30]
[398344191,1765538119440,-500.0,0.00041643,30]
[398344192,1765538119449,-500.0,0.00041643,30]
[398344193,1765538119460,-1824.08,0.00041643,30]
[398344194,1765538119469,-651.26,0.00041643,30]
[398344195,1765538119478,-500.0,0.00041643,30]
[398344196,1765538119487,-500.0,0.00041643,30]
[398344197,1765538119496,-768.58,0.00041643,30]
[398344198,1765538119506,-500.0,0.00041643,30]
[398344199,1765538119516,-604.69,0.00041643,30]
[398344200,1765538119525,-500.0,0.00041643,30]
[398344201,1765538119536,-1703.32,0.00041643,30]
[398344202,1765538119545,-601.55,0.00041643,7]
[398344203,1765538119554,-662.42,0.00041643,30]
[398344204,1765538119563,-693.68,0.00041643,30]
[398344205,1765538119572,-500.0,0.00041643,30]
[398344206,1765538119581,-500.0,0.00041643,30]
[398344207,1765538119591,-500.0,0.00041643,30]
[398344208,1765538119599,-500.0,0.00041643,30]
[398344209,1765538119608,-1436.54,0.00041643,30]
[398344210,1765538119618,-500.0,0.00041643,30]
[398344211,1765538119627,-500.0,0.00041643,30]
[398344212,1765538119636,-500.0,0.00041643,30]
[398344213,1765538119646,-500.0,0.00041643,30]
[398344214,1765538119656,-298.13522834,0.00041643,30]
[398344215,1765538119665,-500.0,0.00041643,30]
[398344216,1765538119675,-500.0,0.00041643,30]
[398344217,1765538119684,-204.82469304,0.00041643,30]
[398344218,1765538119692,-500.0,0.00041643,30]
[398344219,1765538119702,-698.57,0.00041643,30]
[398344220,1765538119712,-789.19,0.00041643,30]
[398344221,1765538119721,-500.0,0.00041643,30]
[398344222,1765538119731,-229.40366223,0.00041643,30]
[398344223,1765538119741,-627.23,0.00041643,30]
[398344224,1765538119750,-500.0,0.00041643,30]
[398344225,1765538119759,-772.34,0.00041643,30]
[398344226,1765538119768,-500.0,0.00041643,30]
[398344227,1765538119778,-500.0,0.00041643,30]
[398344228,1765538119787,-741.68,0.00041643,30]
[398344229,1765538119797,-545.86,0.00041643,30]
[398344230,1765538119807,-625.45,0.00041643,30]
[398344231,1765538119816,-646.79,0.00041643,30]
[398344232,1765538119826,-646.65,0.00041643,30]
[398344233,1765538119835,-794.95,0.00041643,30]
[398344234,1765538119844,-500.0,0.00041643,30]
[398344235,1765538119855,-687.17,0.00041643,30]
[398344236,1765538119864,-573.08425521,0.00041643,30]
[398344237,1765538119874,-500.0,0.00041643,30]
[398344238,1765538119885,-885.09,0.00041643,30]
[398344239,1765538119895,-1097.95,0.00041643,30]
[398344240,1765538119905,-500.0,0.00041643,30]
[398344241,1765538119914,-193.03883639,0.00041643,30]
[398344242,1765538119923,-500.0,0.00041643,30]
[398344243,1765538119933,-837.55,0.00041643,30]
[398344244,1765538119943,-540.22,0.00041643,30]
[398344245,1765538119953,-578.7623923,0.00041643,30]
[398344246,1765538119962,-519.63,0.00041643,30]
[398344247,1765538119971,-1294.43,0.00041643,30]
[398344248,1765538119981,-500.0,0.00041643,30]
[398344249,1765538119991,-500.0,0.00041643,30]
[398344250,1765538120001,-1011.88,0.00041643,30]
[398344251,1765538120010,-500.0,0.00041643,30]
[398344252,1765538120020,-500.0,0.00041643,30]
[398344253,1765538120029,-1196.03,0.00041643,30]
[398344254,1765538120039,-617.95,0.00041643,30]
[398344255,1765538120048,-548.66,0.00041643,30]
[398344256,1765538120057,-500.0,0.00041643,30]
[398344257,1765538120067,-500.0,0.00041643,30]
[398344258,1765538120076,-678.18,0.00041643,30]
[398344259,1765538120086,-500.0,0.00041643,30]
[398344260,1765538120096,-500.0,0.00041643,30]
[398344261,1765538120105,-585.26,0.00041643,30]
[398344262,1765538120114,-151.47886708,0.00041643,30]
[398344263,1765538120124,-500.0,0.00041643,30]
[398344264,1765538120133,-672.38,0.00041643,30]
[398344265,1765538120143,-542.28,0.00041643,30]
[398344266,1765538120152,-500.0,0.00041643,30]
[398344267,1765538120161,-585.25463172,0.00041643,30]
[398344268,1765538120171,-755.36,0.00041643,30]
[398344269,1765538120180,-1228.59,0.00041643,30]
[398344270,1765538120189,-1439.79,0.00041643,30]
[398344271,1765538120199,-864.07,0.00041643,30]
[398344272,1765538120208,-408.05844514,0.00041643,30]
[398344273,1765538120218,-573.95,0.00041643,30]
[398344274,1765538120228,-204.47814384,0.00041643,30]
[398344275,1765538120237,-533.54,0.00041643,30]
[398344276,1765538120246,-938.76,0.00041643,30]
[398344277,1765538120255,-500.0,0.00041643,30]
[398344278,1765538120264,-500.0,0.00041643,30]
[398344279,1765538120273,-620.08,0.00041643,30]
[398344280,1765538120282,-775.57,0.00041643,30]
[398344281,1765538120292,-500.0,0.00041643,30]
[398344282,1765538120302,-501.55,0.00041643,30]
[398344283,1765538120311,-500.0,0.00041643,14]
[398344284,1765538120320,-500.0,0.00041643,30]
[398344285,1765538120329,-755.67,0.00041643,30]
[398344286,1765538120338,-503.01,0.00041643,30]
[398344287,1765538120347,-500.0,0.00041643,30]
[398344288,1765538120356,-595.47,0.00041643,30]
[398344289,1765538120365,-517.36,0.00041643,30]
[398344290,1765538120374,-500.0,0.00041643,30]
[398344291,1765538120383,-500.0,0.00041643,30]
[398344292,1765538120391,-500.0,0.00041643,30]
[398344293,1765538120400,-1197.34,0.00041643,30]
[398344294,1765538120409,-609.14,0.00041643,30]
[398344295,1765538120418,-897.9,0.00041643,30]
[398344296,1765538120428,-702.09,0.00041643,30]
[398344297,1765538120436,-663.82,0.00041643,30]
[398344298,1765538120445,-500.0,0.00041643,30]
[398344299,1765538120454,-500.0,0.00041643,30]
[398344300,1765538120463,-500.0,0.00041643,30]
[398344301,1765538120472,-740.86,0.00041643,30]
[398344302,1765538120481,-500.0,0.00041643,30]
[398344303,1765538120491,-1430.91,0.00041643,30]
[398344304,1765538120500,-1100.71,0.00041643,11]
[398344305,1765538120509,-563.18,0.00041643,30]
[398344306,1765538120518,-1144.71,0.00041643,30]
[398344307,1765538120527,-758.29,0.00041643,30]
[398344308,1765538120536,-667.94,0.00041643,30]
[398344309,1765538120545,-500.0,0.00041643,30]
[398344310,1765538120554,-1846.03,0.00041643,30]
[398344311,1765538120564,-500.0,0.00041643,30]
[398344312,1765538120573,-500.0,0.00041643,30]
[398344313,1765538120583,-500.0,0.00041643,30]
[398344314,1765538120592,-539.09209584,0.00041643,30]
[398344315,1765538120602,-676.5,0.00041643,30]
[398344316,1765538120612,-500.0,0.00041643,30]
[398344317,1765538120621,-732.08,0.00041643,30]
[398344318,1765538120630,-724.94,0.00041643,30]
[398344319,1765538120640,-643.49,0.00041643,30]
[398344320,1765538120650,-1213.64,0.00041643,30]
[398344321,1765538120660,-607.07,0.00041643,30]
[398344322,1765538120670,-750.79,0.00041643,30]
[398344323,1765538120679,-1215.39,0.00041643,30]
[398344324,1765538120689,-565.7,0.00041643,30]
[398344325,1765538120698,-500.0,0.00041643,30]
[398344326,1765538120707,-500.0,0.00041643,30]
[398344327,1765538120716,-500.0,0.00041643,30]
[398344328,1765538120726,-848.58,0.00041643,30]
[398344329,1765538120735,-500.0,0.00041643,30]
[398344330,1765538120744,-500.0,0.00041643,30]
[398344331,1765538120754,-500.0,0.00041643,30]
[398344332,1765538120763,-753.21,0.00041643,30]
[398344333,1765538120772,-500.0,0.00041643,30]
[398344334,1765538120781,-500.0,0.00041643,30]
[398344335,1765538120790,-500.0,0.00041643,30]
[398344336,1765538120799,-552.91,0.00041643,30]
[398344337,1765538120809,-513.25105331,0.00041643,30]
[398344338,1765538120818,-542.08425729,0.00041643,30]
[398344339,1765538120828,-795.68,0.00041643,30]
[398344340,1765538120837,-500.0,0.00041643,30]
[398344341,1765538120846,-692.67,0.00041643,30]
[398344342,1765538120855,-745.98,0.00041643,30]
[398344343,1765538120865,-500.0,0.00041643,30]
[398344344,1765538120875,-500.0,0.00041643,30]
[398344345,1765538120888,-500.0,0.00041643,30]
[398344346,1765538120898,-714.2,0.00041643,30]
[398344347,1765538120907,-266.02913981,0.00041643,30]
[398344348,1765538120916,-500.0,0.00041643,30]
[398344349,1765538120927,-500.0,0.00041643,30]
[398344350,1765538120936,-500.0,0.00041643,30]
[398344351,1765538120945,-990.89,0.00041643,30]
[398344352,1765538120954,-500.0,0.00041643,30]
[398344353,1765538120965,-1141.33,0.00041643,30]
[398344354,1765538120974,-500.0,0.00041643,30]
[398344355,1765538120983,-736.93,0.00041643,30]
[398344356,1765538120993,-500.0,0.00041643,30]
[398344357,1765538121002,-500.0,0.00041643,30]
[398344358,1765538121011,-1026.69,0.00041643,30]
[398344359,1765538121021,-866.2,0.00041643,30]
[398344360,1765538121030,-500.0,0.00041643,30]
[398344361,1765538121039,-500.0,0.00041643,30]
[398344362,1765538121048,-510.19,0.00041643,30]
[398344363,1765538121058,-366.82454648,0.00041643,30]
[398344364,1765538121067,-709.46,0.00041643,30]
[398344365,1765538121076,-755.64,0.00041643,30]
[398344366,1765538121086,-1337.95,0.00041643,30]
[398344367,1765538121096,-505.54507831,0.00041643,30]
[398344368,1765538121105,-3627.22,0.00041643,30]
[398344369,1765538121114,-750.49,0.00041643,30]
[398344370,1765538121124,-500.0,0.00041643,30]
[398344371,1765538121134,-856.96,0.00041643,30]
[398344372,1765538121143,-1759.45,0.00041643,30]
[398344373,1765538121153,-500.0,0.00041643,30]
[398344374,1765538121163,-524.23,0.00041643,30]
[398344375,1765538121172,-500.0,0.00041643,30]
[398344376,1765538121182,-500.54,0.00041643,30]
[398344377,1765538121191,-1039.78,0.00041643,30]
[398344378,1765538121201,-730.61,0.00041643,30]
[398344379,1765538121210,-500.0,0.00041643,30]
[398344380,1765538121219,-615.84,0.00041643,30]
[398344381,1765538121229,-647.65,0.00041643,30]
[398344382,1765538121238,-906.8,0.00041643,30]
[398344383,1765538121248,-1472.62,0.00041643,30]
[398344384,1765538121257,-551.86,0.00041643,30]
[398344385,1765538121266,-500.0,0.00041643,30]
[398344386,1765538121275,-500.0,0.00041643,30]
[398344387,1765538121285,-500.0,0.00041643,30]
[398344388,1765538121294,-500.0,0.00041643,30]
[398344389,1765538121303,-2737.4,0.00041643,30]
[398344390,1765538121313,-1372.17,0.00041643,30]
[398344391,1765538121323,-500.0,0.00041643,30]
[398344392,1765538121332,-500.0,0.00041643,30]
[398344393,1765538121341,-500.0,0.00041643,30]
[398344394,1765538121350,-500.0,0.00041643,30]
[398344395,1765538121360,-427.20050299,0.00041643,30]
[398344396,1765538121369,-500.0,0.00041643,30]
[398344397,1765538121379,-500.0,0.00041643,30]
[398344398,1765538121388,-2430.46,0.00041643,30]
[398344399,1765538121398,-500.0,0.00041643,30]
[398344400,1765538121407,-500.0,0.00041643,30]
[398344401,1765538121417,-500.0,0.00041643,30]
[398344402,1765538121426,-1139.75,0.00041643,30]
[398344403,1765538121435,-1401.35,0.00041643,30]
[398344404,1765538121444,-800.13,0.00041643,30]
[398344405,1765538121454,-500.0,0.00041643,30]
[398344406,1765538121463,-1445.96,0.00041643,30]
[398344407,1765538121472,-500.0,0.00041643,30]
[398344408,1765538121482,-918.45,0.00041643,30]
[398344409,1765538121492,-1070.7,0.00041643,30]
[398344410,1765538121502,-500.0,0.00041643,30]
[398344411,1765538121512,-500.0,0.00041643,30]
[398344412,1765538121521,-2437.96,0.00041643,30]
[398344413,1765538121531,-500.0,0.00041643,30]
[398344414,1765538121541,-549.54671969,0.00041643,30]
[398344415,1765538121550,-592.87,0.00041643,30]
[398344416,1765538121559,-500.0,0.00041643,30]
[398344417,1765538121568,-500.0,0.00041643,30]
[398344418,1765538121578,-1588.94,0.00041643,30]
[398344419,1765538121587,-537.45,0.00041643,30]
[398344420,1765538121596,-500.0,0.00041643,30]
[398344421,1765538121606,-522.96,0.00041643,30]
[398344422,1765538121615,-500.0,0.00041643,30]
[398344423,1765538121624,-1096.52,0.00041643,30]
[398344424,1765538121633,-500.0,0.00041643,30]
[398344425,1765538121642,-500.0,0.00041643,30]
[398344426,1765538121652,-542.04,0.00041643,30]
[398344427,1765538121661,-637.83,0.00041643,30]
[398344428,1765538121671,-698.44,0.00041643,30]
[398344429,1765538121681,-660.2,0.00041643,30]
[398344430,1765538121691,-500.0,0.00041643,30]
[398344431,1765538121700,-500.0,0.00041643,30]
[398344432,1765538121714,-500.0,0.00041643,30]
[398344433,1765538121726,-1065.82,0.00041643,30]
[398344434,1765538121736,-500.0,0.00041643,30]
[398344435,1765538121746,-500.0,0.00041643,30]
[398344436,1765538121757,-2027.17,0.00041643,30]
[398344437,1765538121766,-663.04,0.00041643,30]
[398344438,1765538121777,-500.0,0.00041643,30]
[398344439,1765538121786,-500.0,0.00041643,30]
[398344440,1765538121797,-500.0,0.00041643,30]
[398344441,1765538121807,-500.0,0.00041643,30]
[398344442,1765538121817,-500.0,0.00041643,30]
[398344443,1765538121827,-500.0,0.00041643,30]
[398344444,1765538121837,-1526.42,0.00041643,30]
[398344445,1765538121847,-1034.23,0.00041643,30]
[398344446,1765538121857,-500.0,0.00041643,30]
[398344447,1765538121867,-500.0,0.00041643,30]
[398344448,1765538121877,-604.96,0.00041643,30]
[398344449,1765538121890,-559.59927442,0.00041643,30]
[398344450,1765538121901,-500.0,0.00041643,30]
[398344451,1765538121910,-500.0,0.00041643,30]
[398344452,1765538121920,-500.0,0.00041643,30]
[398344453,1765538121930,-500.0,0.00041643,30]
[398344454,1765538121942,-526.63,0.00041643,30]
[398344455,1765538121951,-500.0,0.00041643,30]
[398344456,1765538121961,-1577.6,0.00041643,30]
[398344457,1765538121970,-500.0,0.00041643,30]
[398344458,1765538121980,-500.0,0.00041643,30]
[398344459,1765538121990,-500.0,0.00041643,30]
[398344460,1765538122000,-500.0,0.00041643,30]
[398344461,1765538122010,-1132.8,0.00041643,30]
[398344462,1765538122019,-705.52,0.00041643,30]
[398344463,1765538122028,-570.07,0.00041643,30]
[398344464,1765538122038,-961.9,0.00041643,30]
[398344465,1765538122047,-497.77308332,0.00041643,30]
[398344466,1765538122056,-735.82,0.00041643,30]
[398344467,1765538122066,-749.42,0.00041643,30]
[398344468,1765538122075,-1191.88,0.00041643,30]
[398344469,1765538122084,-522.47,0.00041643,30]
[398344470,1765538122093,-4298.84,0.00041643,30]
[398344471,1765538122102,-974.16,0.00041643,30]
[398344472,1765538122111,-1095.96,0.00041643,30]
[398344473,1765538122120,-500.0,0.00041643,30]
[398344474,1765538122129,-938.71,0.00041643,30]
[398344475,1765538122138,-1397.58,0.00041643,30]
[398344476,1765538122148,-500.0,0.00041643,30]
[398344477,1765538122157,-159.97396743,0.00041643,30]
[398344478,1765538122166,-2368.57,0.00041643,30]
[398344479,1765538122176,-508.91,0.00041643,30]
[398344480,1765538122185,-1181.83,0.00041643,30]
[398344481,1765538122194,-2107.36,0.00041643,30]
[398344482,1765538122203,-591.32,0.00041643,30]
[398344483,1765538122213,-500.0,0.00041643,30]
[398344484,1765538122222,-1407.05,0.00041643,30]
[398344485,1765538122231,-712.24,0.00041643,30]
[398344486,1765538122240,-500.0,0.00041643,30]
[398344487,1765538122249,-500.0,0.00041643,30]
[398344488,1765538122258,-1000.77,0.00041643,30]
[398344489,1765538122267,-500.0,0.00041643,30]
[398344490,1765538122276,-500.0,0.00041643,30]
[398344491,1765538122285,-578.91,0.00041643,30]
[398344492,1765538122294,-1480.01,0.00041643,30]
[398344493,1765538122303,-796.45,0.00041643,30]
[398344494,1765538122313,-1121.9,0.00041643,30]
[398344495,1765538122322,-538.64,0.00041643,30]
[398344496,1765538122331,-875.09,0.00041643,30]
[398344497,1765538122340,-500.0,0.00041643,30]
[398344498,1765538122350,-1342.46,0.00041643,30]
[398344499,1765538122359,-500.0,0.00041643,30]
[398344500,1765538122368,-500.0,0.00041643,30]
[398344501,1765538122377,-500.0,0.00041643,30]
[398344502,1765538122386,-500.0,0.00041643,30]
[398344503,1765538122395,-551.7,0.00041643,30]
[398344504,1765538122404,-500.0,0.00041643,30]
[398344505,1765538122413,-500.0,0.00041643,30]
[398344506,1765538122423,-500.0,0.00041643,30]
[398344507,1765538122432,-500.0,0.00041643,30]
[398344508,1765538122441,-500.0,0.00041643,30]
[398344509,1765538122450,-891.01,0.00041643,30]
[398344510,1765538122460,-1631.76,0.00041643,30]
[398344511,1765538122469,-500.0,0.00041643,30]
[398344512,1765538122478,-511.07,0.00041643,30]
[398344513,1765538122487,-935.63,0.00041643,30]
[398344514,1765538122497,-500.0,0.00041643,30]
[398344515,1765538122506,-1213.86,0.00041643,30]
[398344516,1765538122515,-713.52,0.00041643,30]
[398344517,1765538122524,-500.0,0.00041643,30]
[398344518,1765538122533,-999.59,0.00041643,30]
[398344519,1765538122542,-762.67,0.00041643,30]
[398344520,1765538122551,-500.0,0.00041643,30]
[398344521,1765538122561,-922.65,0.00041643,30]
[398344522,1765538122570,-1139.73,0.00041643,30]
[398344523,1765538122579,-500.0,0.00041643,30]
[398344524,1765538122588,-960.26,0.00041643,30]
[398344525,1765538122597,-921.07,0.00041643,30]
[398344526,1765538122606,-824.08,0.00041643,30]
[398344527,1765538122615,-500.0,0.00041643,30]
[398344528,1765538122624,-564.56019833,0.00041643,30]
[398344529,1765538122633,-1836.88,0.00041643,30]
[398344530,1765538122643,-500.0,0.00041643,30]
[398344531,1765538122653,-500.0,0.00041643,30]
[398344532,1765538122662,-807.06,0.00041643,30]
[398344533,1765538122672,-1304.95,0.00041643,30]
[398344534,1765538122682,-1005.91,0.00041643,30]
[398344535,1765538122691,-500.0,0.00041643,30]
[398344536,1765538122700,-1051.07,0.00041643,30]
[398344537,1765538122856,-500.0,0.00041643,30]
[398344538,1765538122866,-500.0,0.00041643,30]
[398344539,1765538122876,-929.4,0.00041643,30]
[398344540,1765538122894,-411.10546749,0.00041643,30]
[398344541,1765538122904,-500.0,0.00041643,30]
[398344542,1765538122914,-607.72943427,0.00041643,30]
[398344543,1765538122925,-621.09,0.00041643,30]
[398344544,1765538122936,-500.0,0.00041643,30]
[398344545,1765538122946,-500.0,0.00041643,30]
[398344546,1765538122957,-1874.12,0.00041643,30]
[398344547,1765538122967,-500.0,0.00041643,30]
[398344548,1765538122977,-521.95,0.00041643,30]
[398344549,1765538122987,-500.0,0.00041643,25]
[398344550,1765538122997,-500.0,0.00041643,30]
[398344551,1765538123006,-578.01,0.00041643,30]
[398344552,1765538123016,-646.87741957,0.00041643,30]
[398344553,1765538123026,-667.26,0.00041643,7]
[398344554,1765538123036,-701.87,0.00041643,30]
[398344555,1765538123046,-532.36,0.00041643,30]
[398344556,1765538123056,-500.0,0.00041643,30]
[398344557,1765538123066,-890.33,0.00041643,30]
[398344558,1765538123076,-619.34,0.00041643,30]
[398344559,1765538123086,-500.0,0.00041643,30]
[398344560,1765538123096,-666.66,0.00041643,30]
[398344561,1765538123107,-517.53232159,0.00041643,30]
[398344562,1765538123117,-679.95,0.00041643,30]
[398344563,1765538123127,-846.97,0.00041643,30]
[398344564,1765538123138,-500.0,0.00041643,30]
[398344565,1765538123148,-1622.6,0.00041643,30]
[398344566,1765538123159,-1634.93,0.00041643,30]
[398344567,1765538123169,-1372.09,0.00041643,30]
[398344568,1765538123179,-867.67,0.00041643,30]
[398344569,1765538123189,-500.0,0.00041643,30]
[398344570,1765538123199,-630.63,0.00041643,30]
[398344571,1765538123210,-500.0,0.00041643,30]
[398344572,1765538123219,-1368.81,0.00041643,30]
[398344573,1765538123230,-500.0,0.00041643,30]
[398344574,1765538123240,-500.0,0.00041643,30]
[398344575,1765538123250,-500.0,0.00041643,30]
[398344576,1765538123259,-500.0,0.00041643,30]
[398344577,1765538123269,-2251.55,0.00041643,30]
[398344578,1765538123279,-1877.84,0.00041643,30]
[398344579,1765538123289,-626.64,0.00041643,30]
[398344580,1765538123299,-554.25,0.00041643,30]
[398344581,1765538123309,-500.0,0.00041643,30]
[398344582,1765538123318,-500.0,0.00041643,30]
[398344583,1765538123328,-1066.72,0.00041643,30]
[398344584,1765538123338,-1191.7,0.00041643,30]
[398344585,1765538123348,-620.95,0.00041643,30]
[398344586,1765538123359,-500.0,0.00041643,30]
[398344587,1765538123368,-500.0,0.00041643,30]
[398344588,1765538123378,-2254.72,0.00041643,30]
[398344589,1765538123389,-1109.61,0.00041643,30]
[398344590,1765538123399,-500.0,0.00041643,30]
[398344591,1765538123410,-1451.06,0.00041643,30]
[398344592,1765538123420,-500.0,0.00041643,30]
[398344593,1765538123431,-524.1,0.00041643,30]
[398344594,1765538123442,-535.99,0.00041643,30]
[398344595,1765538123451,-1647.96,0.00041643,30]
[398344596,1765538123461,-500.0,0.00041643,30]
[398344597,1765538123471,-500.0,0.00041643,30]
[398344598,1765538123481,-500.0,0.00041643,30]
[398344599,1765538123491,-1607.35,0.00041643,30]
[398344600,1765538123501,-500.0,0.00041643,30]
[398344601,1765538123511,-1890.33,0.00041643,30]
[398344602,1765538123521,-702.35,0.00041643,30]
[398344603,1765538123532,-1448.32,0.00041643,30]
[398344604,1765538123542,-1632.19,0.00041643,30]
[398344605,1765538123553,-876.83,0.00041643,30]
[398344606,1765538123564,-832.79,0.00041643,30]
[398344607,1765538123574,-623.5,0.00041643,30]
[398344608,1765538123584,-2761.6,0.00041643,30]
[398344609,1765538123595,-604.56,0.00041643,30]
[398344610,1765538123605,-769.61,0.00041643,30]
[398344611,1765538123615,-1014.43,0.00041643,30]
[398344612,1765538123624,-500.0,0.00041643,30]
[398344613,1765538123634,-500.0,0.00041643,30]